bitfinex/quotes_ETHUSD_20250623
["timestamp","ask_amount","ask_price","bid_price","bid_amount"]
[1750692024797,0.23487347,2291.5,2291.3,4.36432972]
[1750692025523,0.23487347,2291.5,2291.4,4.36414419]
[1750692027620,0.23487347,2291.5,2291.3,4.36423928]
[1750692028013,0.23487347,2291.5,2291.4,4.36414419]
[1750692028928,0.23487347,2291.5,2291.3,4.36423515]
[1750692029122,0.23487347,2291.5,2291.4,4.36414419]
[1750692030823,0.23487347,2291.5,2291.3,4.36424549]
[1750692031024,0.23487347,2291.5,2291.4,4.36414419]
[1750692031325,0.23487347,2291.5,2291.4,7.368]
[1750692031892,0.7519,2291.4,2291.2,1.941]
[1750692032100,0.7519,2291.4,2291.3,7.364]
[1750692033104,10.0,2291.3,2290.7,1.941]
[1750692033392,10.0,2291.3,2290.9,4.36508213]
[1750692033595,10.0,2291.3,2291.2,4.36452513]
[1750692033810,10.0,2291.3,2291.2,7.369]
[1750692034746,10.0,2291.3,2291.2,11.73352513]
[1750692034957,10.0,2291.3,2291.2,13.67452513]
[1750692035749,7.76,2291.4,2291.3,4.36433465]
[1750692036112,17.76,2291.4,2291.3,4.36433465]
[1750692037348,10.0,2291.4,2291.3,4.36433465]
[1750692037650,0.23487347,2291.5,2291.4,5.14954419]
[1750692037822,7.76,2292.2,2291.9,4.36318627]
[1750692038026,0.29978151,2292.1,2292.0,11.73600174]
[1750692038445,0.29978151,2292.1,2292.0,7.373]
[1750692038849,0.29978151,2292.1,2292.0,7.371]
[1750692039738,2.18838966,2292.1,2292.0,7.368]
[1750692040427,2.18838966,2292.1,2291.9,7.364]
[1750692040627,0.7888,2292.0,2291.9,7.364]
[1750692042063,18.5488,2292.0,2291.9,7.364]
[1750692044733,10.55,2291.9,2291.6,9.343]
[1750692044931,12.92350195,2291.9,2291.4,7.358]
[1750692045158,7.76,2291.8,2291.4,7.358]
[1750692045540,10.8326,2291.7,2291.3,1.985]
[1750692045762,10.8326,2291.7,2291.3,9.348]
[1750692045964,12.76871228,2291.7,2291.3,9.348]
[1750692046339,10.0,2291.5,2290.8,5.16414369]
[1750692046544,0.8326,2291.2,2290.9,1.985]
[1750692046864,10.0,2291.0,2290.9,1.985]
[1750692047066,17.76,2291.0,2290.9,1.985]
[1750692047281,17.76,2291.0,2290.5,14.85974116]
[1750692047282,17.76,2291.0,2290.5,12.479]
[1750692047432,17.76,2291.0,2290.5,24.20685497]
[1750692047832,17.76,2291.0,2290.5,19.841]
[1750692048350,17.76,2291.0,2290.6,4.36566626]
[1750692048667,17.76,2291.0,2290.5,24.20674209]
[1750692049035,17.76,2291.0,2290.5,24.20669232]
[1750692049367,17.76,2291.0,2290.5,19.841]
[1750692049535,17.76,2291.0,2290.5,24.20673622]
[1750692051959,17.76,2291.0,2290.5,19.841]
[1750692052163,17.76,2291.0,2290.5,24.20685342]
[1750692052481,17.76,2291.0,2290.6,4.36564154]
[1750692052671,17.76,2291.0,2290.5,24.20674277]
[1750692053470,17.76,2291.0,2290.6,4.36555866]
[1750692053671,17.76,2291.0,2290.8,4.36528465]
[1750692053889,17.76,2291.0,2290.9,7.354]
[1750692056002,7.76,2291.0,2290.9,11.71909668]
[1750692059850,7.76,2291.4,2291.3,4.36433465]
[1750692060103,7.76,2291.4,2291.3,13.69633465]
[1750692060313,7.76,2291.6,2291.5,4.36395374]
[1750692060611,7.76,2291.6,2291.5,11.70695374]
[1750692060808,7.76,2291.6,2291.5,12.49055374]
[1750692061460,7.76,2291.8,2291.4,4.36414419]
[1750692061659,14.36579355,2291.5,2291.3,7.353]
[1750692062289,0.7632,2291.5,2291.3,7.353]
[1750692063084,0.7632,2291.5,2291.4,7.358]
[1750692065200,14.36579355,2291.5,2291.4,7.358]
[1750692065390,25.40935669,2291.5,2291.4,7.358]
[1750692065702,27.95029236,2291.5,2291.4,7.358]
[1750692065899,10.0,2291.4,2290.7,4.36535716]
[1750692066086,0.7511,2291.3,2290.9,1.986]
[1750692066401,1.79466314,2291.3,2290.9,1.986]
[1750692066579,9.55466314,2291.3,2290.9,1.986]
[1750692067098,10.0,2291.1,2290.9,1.986]
[1750692067264,10.0,2291.1,2290.9,9.33]
[1750692069707,1.3815,2291.1,2290.9,1.986]
[1750692069907,2.42541057,2291.1,2290.7,7.339]
[1750692070207,0.55,2290.9,2290.7,7.339]
[1750692071509,10.55,2290.9,2290.7,7.339]
[1750692071678,11.59391057,2290.9,2290.5,12.463]
[1750692071879,0.8315,2290.8,2290.5,12.463]
[1750692072079,10.0,2290.6,2290.5,19.797]
[1750692072320,0.8315,2290.5,2290.3,7.334]
[1750692072508,1.87541057,2290.5,2290.2,1.969]
[1750692072818,0.8315,2290.5,2290.2,1.969]
[1750692073211,11.87541057,2290.5,2290.2,9.302]
[1750692073529,0.8315,2290.7,2290.2,13.6683489]
[1750692073725,1.1312859,2290.7,2290.2,13.6683489]
[1750692073912,2.17589161,2290.7,2290.2,9.302]
[1750692074830,24.15259355,2290.6,2290.2,9.302]
[1750692075139,1.04460571,2290.5,2290.2,9.302]
[1750692076040,0.8243,2290.4,2290.2,1.969]
[1750692076270,31.91259355,2290.3,2290.2,1.969]
[1750692076383,32.95719926,2290.3,2290.2,1.969]
[1750692076741,32.95719926,2290.3,2289.9,7.332]
[1750692076742,10.0,2290.2,2289.9,7.332]
[1750692076900,11.04460571,2290.2,2289.9,7.332]
[1750692077386,7.76,2290.1,2289.8,1.969]
[1750692077718,0.7229,2290.0,2289.8,9.299]
[1750692078296,17.76,2289.9,2289.8,9.299]
[1750692078912,10.0,2289.8,2289.3,1.97]
[1750692079234,10.0,2289.6,2289.3,1.97]
[1750692079942,10.0,2289.4,2289.3,1.97]
[1750692081128,10.0,2289.4,2289.3,6.33814746]
[1750692081821,10.0,2289.4,2288.9,0.782]
[1750692081998,10.0,2289.4,2289.0,9.303]
[1750692082200,10.0,2289.4,2289.0,13.67163037]
[1750692082444,10.0,2289.4,2289.1,7.335]
[1750692082991,11.85256,2289.4,2289.0,1.97]
[1750692083198,25.45515355,2289.4,2289.0,9.303]
[1750692083425,7.76,2289.3,2289.0,9.303]
[1750692083598,10.0,2289.2,2289.0,9.303]
[1750692084012,10.0,2289.2,2289.0,1.97]
[1750692084217,8.5268,2289.1,2289.0,9.302]
[1750692084418,10.0,2289.0,2288.8,7.332]
[1750692084744,10.0,2289.0,2288.8,11.70107905]
[1750692084927,10.0,2289.0,2288.9,4.36891083]
[1750692085317,10.0,2289.0,2288.9,11.69891083]
[1750692085517,10.0,2289.0,2288.9,7.33]
[1750692085745,10.0,2289.0,2288.9,11.69891083]
[1750692086121,10.0,2289.0,2288.9,7.33]
[1750692086646,10.0,2289.0,2288.9,11.69891083]
[1750692086963,10.0,2289.0,2288.9,7.33]
[1750692087462,10.0,2289.0,2288.7,7.1000593]
[1750692087619,10.0,2289.0,2288.9,7.326]
[1750692088923,0.7514,2288.9,2288.6,14.85938508]
[1750692089124,0.7514,2288.9,2288.7,7.325]
[1750692089348,17.76,2288.8,2288.7,7.325]
[1750692090243,17.76,2288.8,2288.6,12.46]
[1750692090449,10.0,2288.7,2288.6,10.49]
[1750692090623,0.7653,2288.7,2288.6,17.814]
[1750692091059,0.7653,2288.7,2288.6,7.324]
[1750692091221,18.5253,2288.7,2288.5,9.295]
[1750692092931,1.3061,2288.4,2287.8,0.77]
[1750692093132,13.60259355,2287.9,2287.2,0.77]
[1750692093336,10.0,2287.5,2287.1,1.971]
[1750692093584,17.76,2287.5,2287.1,1.971]
[1750692093722,13.60259355,2287.3,2286.8,10.497]
[1750692093923,10.0,2287.2,2286.8,17.827]
[1750692094180,0.8115,2287.1,2286.8,17.827]
[1750692094465,0.8115,2287.1,2286.8,17.826]
[1750692094466,10.0,2286.9,2286.8,17.826]
[1750692094770,10.0,2286.9,2286.8,7.329]
[1750692097125,8.5715,2287.1,2286.3,0.8247]
[1750692097126,10.55,2287.0,2286.3,0.8247]
[1750692097331,3.00409243,2286.9,2286.4,7.324]
[1750692097571,3.00409243,2286.9,2286.3,1.971]
[1750692097572,10.0,2286.7,2286.3,1.971]
[1750692097733,10.0,2286.7,2286.4,7.323]
[1750692098152,0.7668,2286.6,2286.4,7.323]
[1750692099160,0.55,2286.5,2285.9,10.497]
[1750692099365,10.0,2286.4,2285.9,10.497]
[1750692099669,0.55,2286.1,2285.8,7.331]
[1750692100063,0.7965,2286.2,2285.8,7.331]
[1750692100288,0.7965,2286.2,2285.7,6.34693396]
[1750692100601,0.7965,2286.2,2285.8,11.70382883]
[1750692100801,0.7965,2286.2,2285.8,7.329]
[1750692100962,0.29978733,2286.1,2285.8,11.70381254]
[1750692101392,0.29978733,2286.1,2285.8,7.329]
[1750692101788,10.29978733,2286.1,2285.5,4.37532019]
[1750692101974,12.55635849,2286.1,2285.5,11.70332019]
[1750692102181,12.55635849,2286.1,2285.6,4.37520205]
[1750692102401,12.55635849,2286.1,2286.0,4.37445319]
[1750692102402,0.29978733,2286.1,2286.0,4.37445319]
[1750692102905,0.29978733,2286.1,2286.0,7.329]
[1750692103108,0.29978733,2286.1,2285.8,4.37479357]
[1750692103281,0.29978733,2286.1,2285.8,7.329]
[1750692103482,0.29978733,2286.1,2285.7,13.66293686]
[1750692103703,0.29978733,2286.1,2285.7,9.288]
[1750692103879,0.29978733,2286.1,2285.9,4.37454033]
[1750692104819,0.29978733,2286.1,2285.8,4.37475697]
[1750692104971,0.29978733,2286.1,2285.9,4.37463835]
[1750692105365,0.29978733,2286.1,2285.7,13.66294561]
[1750692105560,0.29978733,2286.1,2285.9,4.37462234]
[1750692106184,0.29978733,2286.1,2285.8,4.37477368]
[1750692106399,0.29978733,2286.1,2285.7,9.288]
[1750692106697,0.29978733,2286.1,2285.8,4.37480787]
[1750692106898,0.29978733,2286.1,2286.0,4.37445319]
[1750692107100,0.29978733,2286.1,2286.0,12.45195319]
[1750692107399,0.29978733,2286.1,2286.0,12.40195319]
[1750692107782,0.29978733,2286.1,2286.0,12.40695319]
[1750692108672,10.0,2286.5,2286.3,4.37384299]
[1750692108868,10.0,2286.5,2286.4,7.329]
[1750692109091,10.0,2286.5,2286.4,11.70268789]
[1750692109568,0.8232,2286.9,2286.5,4.37349661]
[1750692109768,0.8232,2286.9,2286.4,7.329]
[1750692109769,2.4740512,2286.9,2286.6,4.37322331]
[1750692109984,0.29978877,2286.9,2286.7,11.697053]
[1750692110216,0.29978877,2286.9,2286.8,7.324]
[1750692110870,0.29978877,2286.9,2286.8,11.69692286]
[1750692111472,0.8109,2287.4,2286.8,11.69692286]
[1750692111672,0.8109,2287.4,2286.6,4.37321466]
[1750692112020,0.8109,2287.4,2286.7,9.286]
[1750692112021,10.0,2287.2,2286.7,9.286]
[1750692112379,10.0,2287.2,2286.7,13.65897139]
[1750692112579,10.0,2287.2,2286.8,4.37289009]
[1750692113104,10.0,2287.2,2286.7,13.65899954]
[1750692113310,10.0,2287.2,2286.7,9.286]
[1750692113507,2.22632135,2287.1,2286.7,9.286]
[1750692114100,0.7927,2287.0,2286.4,4.37360203]
[1750692114302,10.7927,2287.0,2286.5,9.292]
[1750692114781,10.7927,2287.0,2286.5,13.66541995]
[1750692114986,10.7927,2287.0,2286.5,9.292]
[1750692115208,1.30190214,2286.9,2286.5,13.66548501]
[1750692115781,1.30190214,2286.9,2286.5,9.292]
[1750692115983,1.30190214,2286.9,2286.6,7.323]
[1750692116379,1.30190214,2286.9,2286.7,7.321]
[1750692116580,0.55,2286.8,2286.2,14.88195848]
[1750692116880,4.17966479,2286.8,2286.4,1.961]
[1750692117503,4.17966479,2286.8,2286.2,10.508]
[1750692117504,0.7822,2286.6,2286.2,10.508]
[1750692117674,0.7822,2286.6,2286.2,14.88201798]
[1750692117980,0.7822,2286.6,2286.3,7.319]
[1750692118822,1.82136816,2286.6,2286.3,7.319]
[1750692118992,1.8215365,2286.6,2286.3,7.319]
[1750692119176,0.29978877,2286.8,2286.2,12.469]
[1750692119379,13.65204576,2286.7,2286.3,7.319]
[1750692119635,13.65204576,2286.7,2286.2,10.508]
[1750692119636,1.3675,2286.5,2286.2,10.508]
[1750692119784,1.85685626,2286.5,2286.3,7.316]
[1750692120093,0.8175,2286.5,2286.3,7.316]
[1750692120481,0.8175,2286.5,2286.2,10.508]
[1750692120679,0.7723,2286.3,2285.3,1.315181]
[1750692120925,0.7723,2286.3,2285.2,0.7883]
[1750692120926,10.0,2286.1,2285.6,4.37520697]
[1750692121089,1.03935626,2286.0,2285.5,11.69132797]
[1750692121287,1.03935626,2285.9,2285.5,7.316]
[1750692121594,1.03935626,2285.8,2285.6,7.328]
[1750692121799,1.03935626,2285.7,2285.6,7.328]
[1750692121995,1.03935626,2285.8,2285.7,4.37502734]
[1750692122197,1.03935626,2286.1,2286.0,5.18775319]
[1750692122493,1.03935626,2286.4,2286.2,4.37406313]
[1750692122681,0.7596,2287.1,2286.5,4.37338836]
[1750692122880,11.04383652,2287.0,2286.6,9.292]
[1750692123113,1.04383652,2286.9,2286.6,9.292]
[1750692123317,1.04383652,2286.8,2286.6,9.292]
[1750692123523,11.314945,2287.0,2286.6,9.292]
[1750692123524,1.04383652,2286.7,2286.6,9.292]
[1750692123827,1.04383652,2286.7,2286.5,7.339]
[1750692123981,1.04383652,2286.6,2286.5,7.339]
[1750692124583,8.80383652,2286.6,2286.5,7.339]
[1750692125013,18.80383652,2286.6,2286.5,7.339]
[1750692128119,18.80383652,2286.6,2286.5,11.71249661]
[1750692128487,18.80383652,2286.6,2286.5,7.339]
[1750692129623,18.80383652,2286.6,2286.5,11.71249661]
[1750692130229,18.80383652,2286.6,2286.5,7.339]
[1750692131925,18.80383652,2286.6,2286.3,1.962]
[1750692132125,1.04383652,2286.5,2286.4,7.325]
[1750692132334,11.83213652,2286.5,2285.9,0.8278]
[1750692132624,1.04383652,2286.4,2286.2,4.37400041]
[1750692132826,10.0,2286.5,2286.3,7.324]
[1750692133004,1.04480889,2286.4,2286.3,7.324]
[1750692135129,1.04480889,2286.6,2286.3,11.69779035]
[1750692135305,1.04480889,2286.5,2286.3,7.324]
[1750692135507,1.04480889,2286.4,2286.3,7.324]
[1750692135930,1.04480889,2286.4,2285.9,5.20236423]
[1750692136136,1.04480889,2286.3,2286.0,9.275]
[1750692136301,1.04480889,2286.2,2286.0,13.64942553]
[1750692136627,1.04480889,2286.5,2286.0,9.275]
[1750692136936,1.04480889,2286.4,2286.0,13.64936661]
[1750692137140,1.04480889,2286.3,2285.9,5.20234529]
[1750692137339,1.04480889,2286.2,2286.1,1.957]
[1750692137498,1.04480889,2286.4,2286.1,1.957]
[1750692137852,1.04480889,2286.3,2286.1,1.957]
[1750692138052,1.04480889,2286.2,2286.1,1.957]
[1750692138197,1.04480889,2286.4,2286.1,1.957]
[1750692138500,2.54851547,2286.5,2286.1,1.957]
[1750692138501,1.04480889,2286.3,2286.1,1.957]
[1750692138700,1.04480889,2286.4,2286.1,1.957]
[1750692138975,1.04480889,2286.3,2286.1,1.957]
[1750692139255,1.04480889,2286.6,2286.1,6.33119077]
[1750692139541,1.04480889,2286.5,2286.2,4.37398732]
[1750692139726,1.04480889,2286.4,2286.3,7.317]
[1750692140047,0.7883,2286.7,2286.3,11.69086731]
[1750692140048,1.04480889,2286.6,2286.3,11.69086731]
[1750692140257,1.04480889,2286.5,2286.3,8.1199]
[1750692140409,11.04480889,2286.8,2286.3,7.317]
[1750692140616,1.04480889,2286.7,2286.3,11.69086525]
[1750692140832,1.04480889,2286.6,2286.3,11.69086525]
[1750692141016,1.04480889,2286.5,2286.3,11.69086525]
[1750692141217,1.04480889,2286.4,2286.3,7.317]
[1750692141523,1.04480889,2286.7,2286.3,7.317]
[1750692141713,1.04480889,2286.6,2286.4,4.37355884]
[1750692141897,1.04480889,2286.7,2286.5,4.37348596]
[1750692142098,0.8312,2286.9,2286.6,7.317]
[1750692142328,1.04543673,2286.8,2286.6,7.317]
[1750692142538,1.04543673,2286.7,2286.6,7.317]
[1750692142707,1.04543673,2286.8,2286.6,7.317]
[1750692143030,1.04543673,2286.7,2286.6,7.317]
[1750692143238,1.04543673,2286.9,2286.6,7.317]
[1750692143541,1.04543673,2286.8,2286.6,7.317]
[1750692144041,1.04543673,2286.7,2286.6,7.317]
[1750692144243,1.04543673,2286.9,2286.6,7.317]
[1750692144444,18.80543673,2286.8,2286.6,7.317]
[1750692144622,11.04543673,2286.7,2286.3,5.14080582]
[1750692144823,7.76,2286.6,2286.5,1.957]
[1750692145135,8.80543673,2286.6,2286.5,1.957]
[1750692145942,10.0,2286.5,2286.4,1.957]
[1750692146249,10.0,2286.5,2286.4,7.317]
[1750692146648,10.0,2286.5,2286.4,11.69068789]
[1750692147008,10.0,2286.5,2286.2,1.957]
[1750692147244,10.0,2286.5,2286.3,7.317]
[1750692147245,12.82160485,2286.5,2286.3,7.317]
[1750692147545,12.82160485,2286.5,2285.5,0.7657]
[1750692147546,1.04560485,2286.4,2285.5,0.7657]
[1750692147710,1.04560485,2286.4,2286.1,4.37411963]
[1750692147911,1.04560485,2286.4,2286.2,7.317]
[1750692149442,10.0,2286.3,2285.8,4.37470431]
[1750692149610,11.04560485,2286.3,2286.0,1.957]
[1750692150421,1.04560485,2286.3,2286.0,1.957]
[1750692150628,7.76,2286.5,2286.2,4.37407051]
[1750692150629,8.80560485,2286.5,2286.2,4.37407051]
[1750692150915,7.76,2286.5,2286.2,7.317]
[1750692151133,8.80560485,2286.5,2286.2,7.317]
[1750692151341,7.76,2286.5,2286.2,7.317]
[1750692151559,12.92616534,2286.5,2286.2,7.317]
[1750692151863,11.04560485,2286.4,2286.2,7.317]
[1750692152354,9.59820485,2286.3,2285.8,1.957]
[1750692152557,1.04560485,2286.2,2285.8,1.957]
[1750692152771,1.04560485,2286.2,2285.4,0.25763227]
[1750692152772,1.3709,2286.0,2285.4,0.25763227]
[1750692152932,1.04560485,2285.9,2285.5,7.317]
[1750692153138,1.04560485,2285.9,2285.6,7.317]
[1750692153656,1.04560485,2286.0,2285.6,7.317]
[1750692153857,11.04560485,2286.1,2285.6,11.69210683]
[1750692154065,11.34538636,2286.1,2285.6,11.69210964]
[1750692154372,13.30185684,2286.1,2285.6,11.69210964]
[1750692154565,1.04560485,2286.0,2285.6,16.06716559]
[1750692154873,1.04560485,2286.0,2285.6,11.69206861]
[1750692155059,1.04560485,2286.0,2285.7,4.37502479]
[1750692155283,11.34538636,2286.1,2285.7,8.74994046]
[1750692155466,0.29978151,2286.1,2286.0,4.37445319]
[1750692155670,0.29978151,2286.1,2286.0,13.64845319]
[1750692155890,0.29978151,2286.1,2286.0,14.43045319]
[1750692156072,1.87670306,2286.7,2286.2,4.3739074]
[1750692156398,2.36009206,2286.6,2286.3,7.318]
[1750692156561,1.04500306,2286.6,2286.3,7.318]
[1750692157381,11.59500306,2286.5,2286.3,7.318]
[1750692157536,1.59500306,2286.5,2286.3,7.318]
[1750692157742,1.04500306,2286.5,2286.3,7.318]
[1750692158050,0.29978151,2286.5,2286.3,7.318]
[1750692158248,2.26010313,2286.5,2286.3,7.298091]
[1750692158453,3.30510619,2286.5,2286.3,7.298091]
[1750692159691,1.34478457,2286.5,2286.3,11.6718751]
[1750692159998,0.29978151,2286.5,2286.4,4.37368789]
[1750692160765,1.04500306,2286.9,2286.3,8.091091]
[1750692161065,10.0,2286.9,2286.6,4.37320169]
[1750692161266,10.0,2286.9,2286.7,7.317]
[1750692161507,11.04601863,2286.9,2286.7,11.68996388]
[1750692161811,11.04601863,2286.9,2286.7,7.317]
[1750692162367,11.04601863,2286.9,2286.7,11.69000491]
[1750692163307,11.04601863,2286.9,2286.8,4.37292286]
[1750692163490,1.04601863,2286.9,2286.8,5.13162286]
[1750692163799,7.76,2287.0,2286.9,4.37273164]
[1750692163800,17.76,2287.0,2286.9,4.37273164]
[1750692165567,17.76,2287.0,2286.8,5.13151101]
[1750692166297,17.76,2287.0,2286.8,5.13146478]
[1750692166503,17.76,2287.0,2286.8,5.13151487]
[1750692167611,17.76,2287.0,2286.7,11.69000652]
[1750692168304,17.76,2287.0,2286.5,0.8321]
[1750692168534,13.65204576,2286.8,2286.3,2.7057]
[1750692168675,1.86744534,2286.7,2286.3,9.268]
[1750692170411,1.86744534,2286.7,2286.3,13.6418467]
[1750692170618,1.86744534,2286.7,2286.4,4.37368646]
[1750692170811,10.0,2286.8,2286.4,5.14312263]
[1750692170980,8.5124,2286.9,2286.5,4.3734925]
[1750692171317,9.04044598,2286.9,2286.6,11.68917726]
[1750692171480,9.04044598,2286.9,2286.7,11.68895271]
[1750692171481,10.0,2286.8,2286.7,11.68895271]
[1750692172178,10.0,2286.8,2286.7,7.316]
[1750692175113,7.99487347,2286.9,2286.7,7.316]
[1750692176883,7.99487347,2286.9,2286.8,7.08562286]
[1750692176884,17.99487347,2286.9,2286.8,7.08562286]
[1750692177285,17.76,2286.9,2286.8,1.952]
[1750692177914,7.76,2286.9,2286.8,6.32492286]
[1750692178302,8.536,2286.9,2286.4,5.15870551]
[1750692178507,8.536,2286.9,2286.5,9.268]
[1750692178707,8.536,2286.9,2286.6,4.37317904]
[1750692179298,8.536,2286.9,2286.7,4.37310715]
[1750692179494,7.76,2286.9,2286.7,4.37310715]
[1750692179796,7.76,2286.9,2286.5,13.64144904]
[1750692179984,7.76,2286.9,2286.2,10.51]
[1750692179985,10.0,2286.8,2286.3,4.37377032]
[1750692180186,7.76,2286.7,2286.4,11.6886406]
[1750692180414,7.76,2286.7,2286.5,4.37347006]
[1750692180586,7.76,2286.7,2286.4,11.68861264]
[1750692180928,7.76,2286.7,2286.5,7.315]
[1750692181907,7.76,2286.7,2286.5,11.68835786]
[1750692182319,7.76,2286.7,2286.6,4.37330534]
[1750692182320,17.76,2286.7,2286.6,4.37330534]
[1750692183125,17.76,2286.7,2286.6,5.12940534]
[1750692183684,7.76,2287.1,2286.6,5.12940534]
[1750692183989,7.76,2287.4,2287.3,4.37196694]
[1750692184207,0.826,2287.8,2287.3,13.63896694]
[1750692184208,7.76,2287.7,2287.3,13.63896694]
[1750692184452,10.0,2287.6,2287.4,4.37176211]
[1750692184800,11.04630867,2287.6,2287.3,9.267]
[1750692184994,26.6615853,2287.6,2287.0,0.8281]
[1750692185342,1.04630867,2287.5,2287.1,7.315]
[1750692185536,0.8088,2287.4,2286.8,0.7746]
[1750692185754,10.0,2287.2,2286.9,9.267]
[1750692186047,11.04684523,2287.2,2287.0,7.315]
[1750692186825,12.52509496,2287.2,2287.0,7.315]
[1750692187025,11.47824973,2287.2,2287.0,7.315]
[1750692187220,1.04709976,2287.1,2287.0,7.315]
[1750692189934,18.80709976,2287.1,2287.0,7.315]
[1750692193552,10.0,2287.0,2286.4,0.7796]
[1750692193737,13.65204576,2286.7,2286.4,4.37361687]
[1750692194047,17.76,2286.7,2286.6,4.37330534]
[1750692194253,17.76,2286.7,2286.6,7.313]
[1750692194425,17.76,2286.7,2286.6,12.43770534]
[1750692194820,17.76,2286.7,2286.6,8.0644]
[1750692195027,17.76,2286.7,2286.6,7.313]
[1750692195854,17.76,2286.7,2286.6,11.68630534]
[1750692196237,17.76,2286.7,2286.6,12.43770534]
[1750692197332,17.76,2286.7,2286.6,11.68630534]
[1750692197646,17.76,2286.7,2286.6,7.313]
[1750692197817,17.76,2286.7,2286.6,11.68630534]
[1750692198018,17.76,2286.7,2286.6,7.313]
[1750692198453,20.58386999,2286.7,2286.3,4.37375765]
[1750692198618,20.58386999,2286.7,2286.2,17.58536936]
[1750692198619,10.0,2286.6,2286.4,1.95]
[1750692198819,8.80791775,2286.6,2286.4,1.95]
[1750692199017,7.76,2286.6,2286.4,1.95]
[1750692201824,8.80791775,2286.7,2286.4,6.3235844]
[1750692202019,8.80791775,2286.7,2286.4,1.95]
[1750692202339,7.76,2286.7,2286.4,6.32367296]
[1750692202847,7.76,2286.7,2286.5,9.264]
[1750692203035,7.76,2286.7,2286.5,13.63742729]
[1750692203449,7.76,2286.7,2286.5,13.63734575]
[1750692203651,7.76,2286.7,2286.5,9.264]
[1750692203945,10.0,2286.6,2286.5,1.951]
[1750692204270,11.80332707,2286.6,2286.5,7.313]
[1750692206072,11.80332707,2286.6,2286.4,9.264]
[1750692207362,25.45537283,2286.6,2286.4,1.951]
[1750692207566,1.04772707,2286.5,2286.4,1.951]
[1750692207771,4.63486537,2286.5,2286.4,9.264]
[1750692207950,10.0,2286.4,2286.2,10.51]
[1750692208276,11.04772707,2286.4,2286.3,7.313]
[1750692208436,10.0,2286.4,2286.3,7.313]
[1750692212773,11.04680052,2286.5,2286.2,1.951]
[1750692213068,24.43574576,2286.3,2286.2,9.264]
[1750692213370,25.48254628,2286.3,2286.2,9.264]
[1750692214333,25.48254628,2286.3,2285.7,0.7951]
[1750692214566,25.48254628,2286.3,2285.8,9.264]
[1750692214567,1.04680052,2286.2,2285.8,9.264]
[1750692214785,1.04680052,2286.2,2285.8,13.63880854]
[1750692215273,1.04680052,2286.2,2285.8,9.264]
[1750692215475,10.0,2286.1,2285.8,1.951]
[1750692215658,10.0,2286.1,2285.9,7.312]
[1750692216242,10.0,2286.1,2285.8,1.951]
[1750692216573,10.0,2286.1,2285.9,7.313]
[1750692216777,10.0,2286.3,2286.0,4.37435527]
[1750692216936,11.04658489,2286.3,2285.9,8.0938]
[1750692217142,10.0,2286.3,2286.2,4.37407051]
[1750692217354,10.0,2286.3,2286.2,11.68707051]
[1750692217558,7.76,2286.4,2286.3,4.37387919]
[1750692217735,1.314974,2287.0,2286.3,2.7318]
[1750692217938,10.0,2286.9,2286.5,4.37341397]
[1750692218274,11.04671691,2286.9,2286.6,7.312]
[1750692218845,11.04671691,2286.9,2286.7,7.312]
[1750692218846,26.57943436,2286.9,2286.7,7.312]
[1750692219153,1.314818,2287.3,2286.8,0.8127]
[1750692219359,11.41203793,2287.2,2286.7,7.312]
[1750692219788,11.41203793,2287.2,2286.7,11.68511149]
[1750692219969,0.36531157,2287.1,2286.7,7.312]
[1750692220286,10.0,2286.9,2286.7,7.312]
[1750692220492,11.04672636,2286.9,2286.7,7.312]
[1750692225988,13.59988357,2286.9,2286.7,7.312]
[1750692226155,1.04672636,2286.8,2286.7,7.312]
[1750692226361,18.80672636,2286.8,2286.7,7.312]
[1750692226563,10.0,2286.7,2286.4,0.8127]
[1750692226775,11.0475409,2286.7,2286.5,7.311]
[1750692227392,10.0,2286.7,2286.5,7.311]
[1750692227580,10.0,2286.7,2286.5,11.68448061]
[1750692227903,10.0,2286.7,2286.5,11.6843184]
[1750692228195,10.0,2286.7,2286.6,4.37330534]
[1750692228400,10.0,2286.7,2286.5,11.68437923]
[1750692229113,10.0,2286.7,2286.5,7.311]
[1750692229340,10.0,2286.7,2286.5,11.68443941]
[1750692229513,7.76,2286.8,2286.6,4.37330534]
[1750692229878,7.76,2286.8,2286.5,11.68436115]
[1750692230429,17.06729934,2286.8,2286.6,4.37330025]
[1750692230918,17.06729934,2286.8,2286.6,4.37318175]
[1750692232005,7.76,2286.8,2286.7,4.37311409]
[1750692232204,7.76,2286.8,2286.7,5.12371409]
[1750692233691,7.76,2286.8,2286.7,0.7506]
[1750692233887,7.76,2286.8,2286.7,5.12371409]
[1750692237345,7.76,2286.9,2286.8,4.37292286]
[1750692237643,7.76,2286.9,2286.8,13.62992286]
[1750692238339,27.06729934,2287.1,2287.0,4.37254044]
[1750692238715,10.0,2287.0,2286.8,13.62979861]
[1750692239248,10.0,2287.0,2286.9,4.37273164]
[1750692240345,17.76,2287.1,2287.0,5.12734044]
[1750692240649,17.76,2287.1,2287.0,7.308]
[1750692241216,10.0,2287.0,2286.8,5.12760352]
[1750692241426,19.30729934,2287.0,2286.9,9.256]
[1750692241648,19.30729934,2287.0,2286.9,13.62873164]
[1750692242257,19.30729934,2287.0,2286.8,5.12760314]
[1750692242466,19.30729934,2287.0,2286.9,9.255]
[1750692243253,19.30729934,2287.0,2286.9,13.62773164]